bitfinex/quotes_SOLUSD_20250101
["timestamp","ask_amount","ask_price","bid_price","bid_amount"]
[1735747444749,20.0,191.66,191.55,40.19038639]
[1735747445053,20.0,191.66,191.57,23.776884]
[1735747445244,20.0,191.66,191.57,16.41350239]
[1735747445448,20.0,191.66,191.53,6.5386]
[1735747445449,20.0,191.66,191.59,23.776884]
[1735747445648,20.0,191.66,191.57,16.41350239]
[1735747445864,20.0,191.66,191.58,16.41350239]
[1735747446060,73.2,191.69,191.55,24.55965549]
[1735747446265,0.2326,191.7,191.64,23.776884]
[1735747446649,20.0,191.7,191.64,23.776884]
[1735747446869,6.24092072,191.73,191.64,23.776884]
[1735747447176,20.0,191.7,191.63,23.776884]
[1735747447686,20.0,191.7,191.55,5.78263638]
[1735747447687,20.0,191.7,191.55,13.0513]
[1735747447868,26.24092072,191.69,191.56,16.41350239]
[1735747448169,26.24092072,191.69,191.57,16.41350239]
[1735747448668,73.2,191.68,191.58,23.776884]
[1735747448855,20.2326,191.65,191.55,16.41350239]
[1735747449059,20.0,191.64,191.55,23.776884]
[1735747449449,20.0,191.64,191.55,16.41350239]
[1735747451268,20.0,191.64,191.57,23.776884]
[1735747451773,20.0,191.64,191.55,16.41350239]
[1735747452482,20.0,191.62,191.51,16.41350239]
[1735747452952,73.2,191.63,191.51,16.41350239]
[1735747453158,20.0,191.6,191.51,16.41350239]
[1735747453358,20.0,191.6,191.5,40.19038639]
[1735747453772,20.0,191.61,191.5,40.19038639]
[1735747453973,20.0,191.6,191.5,16.41350239]
[1735747454762,20.0,191.6,191.49,17.97940239]
[1735747455081,20.0,191.6,191.5,23.776884]
[1735747455379,20.0,191.6,191.5,40.19038639]
[1735747456074,20.0,191.6,191.52,23.776884]
[1735747456576,20.0,191.6,191.5,40.19038639]
[1735747456974,20.0,191.6,191.52,23.776884]
[1735747457558,20.0,191.6,191.52,16.41350239]
[1735747457757,20.0,191.6,191.52,23.776884]
[1735747457960,24.99483763,191.6,191.49,1.5659]
[1735747458169,24.99483763,191.6,191.51,16.41350239]
[1735747458375,24.99483763,191.6,191.5,23.776884]
[1735747458571,24.99483763,191.6,191.51,16.41350239]
[1735747459480,20.0,191.59,191.52,23.776884]
[1735747459877,20.0,191.59,191.5,40.19038639]
[1735747460259,20.0,191.59,191.5,23.776884]
[1735747460892,20.0,191.59,191.51,16.41350239]
[1735747461237,20.0,191.59,191.52,23.776884]
[1735747462083,20.0,191.59,191.52,16.41350239]
[1735747462391,4.99483763,191.6,191.51,16.41350239]
[1735747462799,4.99483763,191.6,191.52,23.776884]
[1735747463300,20.0,191.62,191.52,23.776884]
[1735747463481,20.0,191.61,191.52,16.41350239]
[1735747464294,20.0,191.6,191.52,16.41350239]
[1735747464499,20.0,191.6,191.52,23.776884]
[1735747465202,20.0,191.6,191.5,16.41350239]
[1735747465496,20.0,191.59,191.49,16.41350239]
[1735747466287,20.0,191.59,191.5,23.776884]
[1735747466583,20.0,191.6,191.52,23.776884]
[1735747467084,73.4326,191.65,191.54,23.776884]
[1735747467704,0.2326,191.65,191.56,23.776884]
[1735747468389,20.0,191.63,191.56,23.776884]
[1735747468592,8.0573,191.7,191.6,23.776884]
[1735747468800,73.4326,191.7,191.6,23.776884]
[1735747468974,0.2326,191.7,191.6,34.28513308]
[1735747469985,20.0,191.69,191.6,34.28513308]
[1735747470506,20.0,191.72,191.62,34.28513308]
[1735747470677,20.0,191.72,191.62,23.776884]
[1735747470877,73.4326,191.75,191.64,34.28513308]
[1735747471079,3.7943,191.76,191.66,10.50824908]
[1735747471286,3.7943,191.76,191.63,23.776884]
[1735747471287,73.2,191.79,191.68,23.776884]
[1735747471901,20.0,191.76,191.64,23.776884]
[1735747472306,20.0,191.75,191.63,23.776884]
[1735747472606,20.0,191.75,191.63,40.17460056]
[1735747473106,20.0,191.75,191.63,23.776884]
[1735747473288,20.0,191.74,191.63,23.776884]
[1735747473905,20.0,191.7,191.63,23.776884]
[1735747474799,20.0,191.7,191.63,40.17460056]
[1735747475195,20.0,191.7,191.63,23.776884]
[1735747475594,20.0,191.7,191.63,40.17460056]
[1735747475786,20.0,191.7,191.64,16.39771656]
[1735747475982,73.2,191.79,191.66,16.39771656]
[1735747476219,7.8214,191.78,191.66,23.776884]
[1735747476389,20.0,191.75,191.66,23.776884]
[1735747477703,20.0,191.74,191.62,22.75761656]
[1735747478087,20.0,191.74,191.62,6.3599]
[1735747478384,20.0,191.74,191.63,40.17460056]
[1735747478690,20.0,191.74,191.64,16.39771656]
[1735747478997,20.0,191.74,191.63,40.17460056]
[1735747479785,20.0,191.73,191.63,40.17460056]
[1735747479990,20.0,191.72,191.63,40.17460056]
[1735747480306,19.0,191.72,191.63,23.776884]
[1735747481613,111.0234,191.74,191.61,1.6088]
[1735747481913,6.24122669,191.72,191.62,23.776884]
[1735747482302,20.0,191.7,191.62,23.776884]
[1735747484537,20.0,191.7,191.65,23.776884]
[1735747484696,20.0,191.7,191.67,23.776884]
[1735747484900,6.24122669,191.77,191.69,23.776884]
[1735747485418,6.24122669,191.77,191.69,16.39771656]
[1735747485597,73.4326,191.8,191.69,16.39771656]
[1735747485930,20.0,191.77,191.69,16.39771656]
[1735747486222,79.67382669,191.8,191.68,16.39771656]
[1735747486420,79.67382669,191.8,191.69,23.776884]
[1735747487222,79.44122669,191.8,191.7,25.335984]
[1735747487411,20.0,191.77,191.7,41.73370056]
[1735747487812,20.0,191.77,191.71,23.776884]
[1735747488114,79.44122669,191.8,191.71,40.17460056]
[1735747488115,6.24122669,191.8,191.71,40.17460056]
[1735747488312,20.0,191.77,191.73,23.776884]
[1735747489006,20.0,191.82,191.73,23.776884]
[1735747491315,20.0,191.82,191.7,17.95681656]
[1735747491510,20.0,191.79,191.7,1.5591]
[1735747491696,20.0,191.78,191.7,1.5591]
[1735747491897,20.0,191.78,191.71,23.776884]
[1735747494692,20.0,191.78,191.73,23.776884]
[1735747495308,20.0,191.78,191.7,17.95681656]
[1735747495507,20.0,191.78,191.7,1.5591]
[1735747495700,20.0,191.78,191.7,17.95681656]
[1735747495906,20.0,191.78,191.7,1.5591]
[1735747496240,20.0,191.78,191.71,23.776884]
[1735747502005,20.0,191.77,191.67,6.5887]
[1735747502215,20.0,191.75,191.65,1.6094]
[1735747502525,6.24122669,191.77,191.65,1.6094]
[1735747502526,20.0,191.74,191.65,1.6094]
[1735747504031,20.0,191.74,191.66,23.776884]
[1735747504211,20.0,191.74,191.65,1.6094]
[1735747504212,7.8204,191.81,191.7,23.776884]
[1735747504406,7.8204,191.81,191.7,40.16027411]
[1735747504608,20.0,191.78,191.7,40.16027411]
[1735747505325,20.0,191.78,191.7,23.776884]
[1735747506026,0.2326,191.82,191.7,16.38339011]
[1735747506241,87.26022669,191.84,191.7,16.38339011]
[1735747506242,87.26022669,191.84,191.72,23.776884]
[1735747506404,20.0,191.81,191.72,23.776884]
[1735747510038,73.2,191.83,191.76,23.776884]
[1735747510610,73.2,191.83,191.73,1.634]
[1735747510815,73.2,191.83,191.74,23.776884]
[1735747512234,6.24122669,191.84,191.74,23.776884]
[1735747514230,20.0,191.81,191.74,23.776884]
[1735747514639,20.0,191.81,191.71,6.6508]
[1735747514929,20.0,191.79,191.71,6.6508]
[1735747515134,27.8206,191.8,191.71,6.6508]
[1735747515330,20.0,191.75,191.71,6.6508]
[1735747515538,20.0,191.75,191.7,1.634]
[1735747515834,20.0,191.75,191.71,23.776884]
[1735747516034,20.0,191.75,191.7,1.634]
[1735747517036,73.2,191.78,191.71,23.776884]
[1735747518118,3.67229632,191.79,191.71,23.776884]
[1735747518936,73.2,191.85,191.71,23.776884]
[1735747519244,20.0,191.81,191.71,23.776884]
[1735747519436,6.24122669,191.84,191.71,23.776884]
[1735747519620,6.24122669,191.84,191.71,40.16027411]
[1735747519819,6.24122669,191.84,191.73,23.776884]
[1735747520038,20.0,191.81,191.73,23.776884]
[1735747520641,6.24122669,191.81,191.73,23.776884]
[1735747522343,6.24122669,191.81,191.72,6.6655]
[1735747522662,20.0,191.78,191.72,6.6655]
[1735747524259,79.44122669,191.81,191.73,23.776884]
[1735747528026,14.05862669,191.88,191.75,40.16027411]
[1735747528227,20.0,191.85,191.75,40.16027411]
[1735747528750,14.05862669,191.88,191.75,40.16027411]
[1735747529930,20.0,191.85,191.75,40.16027411]
[1735747530333,20.0,191.85,191.75,23.776884]
[1735747531049,6.24122669,191.88,191.77,23.776884]
[1735747531347,6.24122669,191.88,191.81,23.776884]
[1735747535763,6.24122669,191.88,191.8,1.5818]
[1735747536263,20.0,191.84,191.8,1.5818]
[1735747536932,20.0,191.84,191.78,6.1657]
[1735747537555,20.0,191.83,191.78,6.1657]
[1735747540361,6.24122669,191.84,191.79,23.776884]
[1735747542345,6.24122669,191.84,191.78,6.1657]
[1735747543256,20.0,191.83,191.78,6.1657]
[1735747543456,20.0,191.81,191.76,1.5818]
[1735747543661,20.0,191.8,191.76,1.5818]
[1735747545048,6.24122669,191.83,191.77,23.776884]
[1735747547979,20.0,191.85,191.77,23.776884]
[1735747548793,6.24122669,191.88,191.77,23.776884]
[1735747549983,20.0,191.85,191.77,23.776884]
[1735747550152,20.0,191.83,191.77,23.776884]
[1735747551456,20.0,191.83,191.76,1.5818]
[1735747554993,93.2,191.83,191.76,1.5818]
[1735747555195,7.8198,191.82,191.76,1.5818]
[1735747557267,20.0,191.78,191.74,6.4784]
[1735747559964,73.2,191.81,191.74,6.4784]
[1735747561198,20.0,191.78,191.74,6.4784]
[1735747562076,73.2,191.82,191.75,23.776884]
[1735747564476,20.0,191.82,191.75,23.776884]
[1735747565792,20.0,191.81,191.74,6.4784]
[1735747566292,0.2326,191.88,191.75,23.776884]
[1735747566293,73.2,191.85,191.75,23.776884]
[1735747566501,20.0,191.82,191.75,23.776884]
[1735747567018,73.2,191.88,191.77,23.776884]
[1735747567191,6.24122669,191.87,191.77,23.776884]
[1735747567503,6.24122669,191.87,191.81,23.776884]
[1735747570225,6.24122669,191.87,191.8,1.5056]
[1735747570226,20.0,191.84,191.8,1.5056]
[1735747571492,20.0,191.82,191.8,1.5056]
[1735747571690,20.0,191.81,191.75,1.5433]
[1735747571896,20.0,191.8,191.75,1.5433]
[1735747573006,20.0,191.79,191.75,1.5433]
[1735747573421,20.0,191.79,191.73,6.1697]
[1735747575139,20.0,191.77,191.73,6.1697]
[1735747576728,73.2,191.8,191.73,6.1697]
[1735747577024,30.0,191.85,191.74,23.776884]
[1735747577025,73.2,191.84,191.74,23.776884]
[1735747577514,20.0,191.81,191.74,23.776884]
[1735747578208,73.2,191.84,191.74,23.776884]
[1735747580705,20.0,191.8,191.74,23.776884]
[1735747582028,20.0,191.8,191.73,6.1697]
[1735747582229,20.0,191.76,191.73,6.1697]
[1735747582538,20.0,191.76,191.71,1.5433]
[1735747582715,24.9950824,191.76,191.71,1.5433]
[1735747584146,20.0,191.74,191.71,1.5433]
[1735747584440,24.9950824,191.76,191.71,1.5433]
[1735747584441,4.9950824,191.76,191.71,1.5433]
[1735747584809,24.9950824,191.76,191.71,1.5433]
[1735747585011,20.0,191.74,191.71,1.5433]
[1735747586940,20.0,191.72,191.69,6.1697]
[1735747590543,20.0,191.71,191.67,1.5118]
[1735747593419,93.2,191.71,191.62,7.5509]
[1735747593623,99.44122669,191.71,191.62,7.5509]
[1735747594620,99.44122669,191.71,191.63,23.776884]
[1735747596219,99.44122669,191.71,191.62,7.5509]
[1735747597039,99.44122669,191.71,191.63,23.776884]
[1735747597627,26.24122669,191.71,191.63,23.776884]
[1735747597833,6.24122669,191.71,191.63,40.16559195]
[1735747598136,73.2,191.72,191.65,23.776884]
[1735747598956,73.2,191.72,191.63,40.16559195]
[1735747599544,20.0,191.72,191.63,40.16559195]
[1735747599942,20.0,191.72,191.63,23.776884]
[1735747601877,26.24122669,191.71,191.63,23.776884]
[1735747603938,26.24122669,191.71,191.62,7.5509]
[1735747606344,26.24122669,191.71,191.63,23.776884]
[1735747607351,6.24122669,191.71,191.65,23.776884]
[1735747608875,7.8225,191.76,191.65,10.49116717]
[1735747610378,7.8225,191.76,191.65,16.39135794]
[1735747611157,14.06372669,191.76,191.65,16.39135794]
[1735747611349,20.0,191.73,191.65,23.776884]
[1735747611570,20.0,191.72,191.62,23.94225794]
[1735747611750,20.0,191.72,191.63,23.776884]
[1735747611947,20.0,191.72,191.63,40.16824194]
[1735747612151,20.0,191.72,191.65,23.776884]
[1735747612668,6.24122669,191.75,191.65,23.776884]
[1735747612974,6.24122669,191.75,191.67,23.776884]
[1735747614787,6.24122669,191.75,191.67,16.39135794]
[1735747615080,6.24122669,191.75,191.69,23.776884]
[1735747615295,6.24122669,191.75,191.71,23.776884]
[1735747615976,14.06212669,191.8,191.71,23.776884]
[1735747616474,7.8209,191.8,191.71,23.776884]
[1735747616786,20.0,191.77,191.68,1.5466]
[1735747618182,20.0,191.77,191.69,23.776884]
[1735747620055,7.8209,191.8,191.69,23.776884]
[1735747620262,73.2,191.82,191.71,23.776884]
[1735747620458,1.32278608,191.81,191.71,23.776884]
[1735747620673,20.0,191.79,191.69,40.16824194]
[1735747621081,20.0,191.79,191.69,23.776884]
[1735747621771,20.0,191.77,191.69,23.776884]
[1735747623387,21.32278608,191.79,191.71,16.39135794]
[1735747623564,1.32278608,191.79,191.71,16.39135794]
[1735747624085,1.32278608,191.79,191.71,23.776884]
[1735747624379,1.32278608,191.79,191.69,40.16824194]
[1735747624585,1.32278608,191.79,191.69,23.776884]
[1735747624879,1.32278608,191.79,191.71,23.776884]
[1735747625462,1.32278608,191.79,191.71,16.39135794]
[1735747625665,3.86263089,191.81,191.71,16.39135794]
[1735747625969,3.86263089,191.81,191.73,40.16824194]
[1735747626175,77.06263089,191.87,191.77,23.776884]
[1735747627568,3.86263089,191.87,191.77,40.16824194]
[1735747628079,3.86263089,191.87,191.77,23.776884]
[1735747631902,101.0182,191.86,191.76,1.5466]
[1735747632187,101.0182,191.86,191.77,23.776884]
[1735747633164,93.2,191.86,191.77,23.776884]
[1735747636877,73.2,191.86,191.77,23.776884]
[1735747640976,0.2326,191.88,191.77,23.776884]
[1735747641401,73.2,191.9,191.77,23.776884]
[1735747642074,5.20770887,191.93,191.81,23.776884]
[1735747642287,3.86263089,191.94,191.83,12.10815836]
[1735747642464,23.86263089,191.94,191.85,23.776884]
[1735747642668,3.86263089,191.94,191.85,23.776884]
[1735747642871,3.86263089,191.94,191.85,10.47995836]
[1735747643071,3.86263089,191.94,191.87,10.47995836]
[1735747643281,3.86263089,191.94,191.86,10.47995836]
[1735747643484,3.86263089,191.94,191.85,10.47995836]
[1735747643872,3.86263089,191.94,191.85,34.25684236]
[1735747644099,3.86263089,191.94,191.86,23.776884]
[1735747644278,3.86263089,191.94,191.86,40.1328854]
[1735747644596,20.0,191.96,191.86,16.3560014]
[1735747645100,20.0,191.93,191.83,1.6282]
[1735747646093,20.0,191.94,191.84,40.1328854]
[1735747646281,20.0,191.94,191.86,16.3560014]
[1735747646468,73.2,191.97,191.87,6.0575]
[1735747646680,73.2,191.97,191.88,23.776884]
[1735747647676,73.2,191.97,191.9,23.776884]
[1735747647996,3.86263089,192.01,191.92,23.776884]
[1735747648195,20.0,192.0,191.92,23.776884]
[1735747648973,3.86263089,192.01,191.92,23.776884]
[1735747650182,20.0,192.0,191.92,23.776884]
[1735747650581,20.0,191.98,191.91,1.5312]
[1735747650898,20.0,191.96,191.87,7.5887]
[1735747651099,20.0,191.99,191.87,23.9447014]
[1735747651299,20.0,191.99,191.89,40.1328854]
[1735747651679,7.8115,192.03,191.89,40.1328854]
[1735747651896,20.0,192.0,191.91,23.776884]
[1735747652178,20.0,192.0,191.89,16.3560014]
[1735747652398,20.0,192.0,191.87,7.5887]
[1735747652602,7.8129,191.99,191.88,23.776884]
[1735747652796,7.8129,191.99,191.87,7.5887]
[1735747653178,27.8129,191.99,191.88,23.776884]
[1735747653400,20.0,191.96,191.88,23.776884]
[1735747653605,20.0,191.95,191.87,7.5887]
[1735747655381,20.0,191.93,191.87,7.5887]
[1735747656304,20.0,191.92,191.82,31.365584]
[1735747660388,20.0,191.92,191.82,47.7215854]
[1735747660796,20.0,191.91,191.82,47.7215854]
[1735747662105,73.2,191.94,191.84,23.776884]
[1735747662305,73.2,191.94,191.84,16.3560014]
[1735747662608,73.2,191.94,191.82,7.5887]
[1735747662807,20.0,191.91,191.83,23.776884]
[1735747663508,73.2,191.94,191.83,23.776884]
[1735747663686,0.2326,191.97,191.84,16.3560014]
[1735747663892,20.0,191.95,191.86,23.776884]
[1735747665489,73.2,191.98,191.86,23.776884]
[1735747665688,7.8129,191.99,191.86,23.776884]
[1735747665905,20.0,191.96,191.86,16.3560014]
[1735747666208,7.8129,191.99,191.86,16.3560014]
[1735747666383,20.0,191.96,191.86,23.776884]
[1735747667292,20.0,191.96,191.84,16.3560014]
[1735747667492,20.0,191.96,191.86,20.0]
[1735747668507,16.964,191.96,191.86,20.0]
[1735747668713,16.964,191.96,191.87,20.0]
[1735747669303,16.964,191.96,191.86,20.0]
[1735747670697,16.964,191.96,191.87,20.0]
[1735747671710,16.964,191.96,191.83,34.24653853]
[1735747671896,16.964,191.96,191.87,20.0]
[1735747672790,16.964,191.96,191.86,20.0]
[1735747672992,16.964,191.96,191.87,10.46965453]
[1735747673192,16.964,191.96,191.87,30.46965453]
[1735747674917,16.964,191.96,191.87,20.0]
[1735747675913,20.0,191.97,191.87,20.0]
[1735747676118,23.776884,191.94,191.81,10.46965453]
[1735747676443,73.2,191.95,191.81,10.46965453]
[1735747676628,73.2,191.95,191.83,10.46965453]
[1735747676920,73.2,191.95,191.85,10.46965453]
[1735747677106,20.0,191.94,191.86,10.46965453]
[1735747677790,20.0,191.94,191.84,11.25125215]
[1735747677997,20.0,191.94,191.84,10.46965453]
[1735747678198,20.0,191.94,191.83,34.24653853]
[1735747678406,20.0,191.94,191.83,35.02821159]
[1735747678602,20.0,191.94,191.83,34.24653853]
[1735747679221,7.8137,191.97,191.83,34.24653853]
[1735747679645,20.0,191.94,191.83,34.24653853]
[1735747679806,20.0,191.94,191.84,10.46965453]
[1735747680307,7.8137,191.97,191.86,20.0]
[1735747681121,73.2,191.99,191.87,23.776884]
[1735747681122,20.0,191.96,191.87,23.776884]
[1735747681629,7.8124,192.01,191.9,20.0]
[1735747681920,84.8052,192.04,191.91,23.776884]
[1735747682219,11.6052,192.04,191.91,34.24653853]
[1735747682396,11.6052,192.04,191.89,7.8179]
[1735747682601,11.78178192,192.04,191.92,20.0]
[1735747682821,20.0,192.01,191.9,23.776884]
[1735747683018,20.0,192.01,191.92,20.0]
[1735747684509,20.0,192.01,191.89,31.594784]
[1735747684823,20.0,192.01,191.9,23.776884]
[1735747686506,20.0,192.01,191.9,34.24653853]
[1735747688517,20.0,192.01,191.9,23.776884]
[1735747689107,20.0,192.01,191.92,20.0]
[1735747691608,27.8122,192.01,191.89,7.8179]
[1735747691811,20.0,191.97,191.85,7.6633]
[1735747692420,96.9943,191.97,191.81,8.80260573]
[1735747692619,20.0,191.94,191.81,8.02107357]
[1735747693512,7.8157,191.92,191.8,7.6633]
[1735747693817,20.0,191.89,191.76,20.1210281]
[1735747694030,20.0,191.89,191.79,20.0]
[1735747694719,27.817,191.89,191.76,1.6303]
[1735747694916,20.0,191.86,191.76,1.6303]
[1735747695332,73.2,191.89,191.77,34.24653853]
[1735747695632,73.2,191.89,191.78,20.0]
[1735747696019,73.2,191.87,191.76,1.6303]
[1735747699840,88.39658344,191.88,191.76,1.6303]
[1735747700351,80.57928344,191.88,191.77,23.776884]
[1735747700555,0.2326,191.9,191.8,20.0]
[1735747700844,20.0,191.89,191.8,20.0]
[1735747701321,0.2326,191.9,191.8,20.0]
[1735747701843,20.0,191.89,191.8,20.0]
[1735747702230,3.81758344,191.9,191.8,20.0]
[1735747702416,23.58498344,191.9,191.8,20.0]
[1735747702612,3.58498344,191.9,191.81,23.776884]
[1735747702926,0.2326,191.95,191.84,23.776884]
[1735747703238,0.2326,191.95,191.85,20.0]
[1735747703445,6.12669058,191.95,191.85,20.0]
[1735747704024,6.12669058,191.95,191.82,23.776884]
[1735747704216,25.89409058,191.94,191.82,23.776884]
[1735747704642,25.89409058,191.94,191.82,30.273984]
[1735747705227,25.89409058,191.94,191.82,6.4971]
[1735747705832,20.0,191.9,191.81,20.0]
[1735747707313,73.2,191.93,191.8,40.1546538]
[1735747707518,73.2,191.93,191.81,16.3777698]
[1735747708021,13.70939058,191.94,191.83,20.0]
[1735747709320,13.70939058,191.94,191.84,20.0]
[1735747710021,23.776884,191.93,191.84,20.0]
[1735747710234,5.89409058,191.94,191.84,21.6513]
[1735747711546,23.776884,191.93,191.84,21.6513]
[1735747712729,20.0,191.91,191.84,1.6513]
[1735747713825,20.0,191.91,191.82,20.0]
[1735747714439,23.776884,191.9,191.81,20.0]
[1735747718953,23.776884,191.9,191.79,21.6513]
[1735747719157,23.776884,191.9,191.8,20.0]
[1735747719745,23.776884,191.9,191.81,20.0]
[1735747722568,23.776884,191.9,191.79,1.6513]
[1735747722569,23.776884,191.9,191.79,32.12628234]
[1735747722763,23.776884,191.91,191.8,30.47498234]
[1735747726270,23.776884,191.91,191.8,20.0]
[1735747726442,23.776884,191.91,191.8,30.47498234]
[1735747726647,23.776884,191.91,191.8,20.0]
[1735747728574,5.89409058,191.93,191.8,30.47498234]
[1735747728766,23.776884,191.92,191.8,30.47498234]
[1735747729371,43.776884,191.92,191.81,10.47498234]
[1735747730077,5.89409058,191.96,191.86,20.0]
[1735747730854,5.89409058,191.96,191.87,20.0]
[1735747731255,23.776884,191.95,191.87,21.5183]
[1735747733583,5.89409058,191.96,191.89,20.0]
[1735747734883,23.776884,191.95,191.89,20.0]
[1735747735679,5.89409058,191.96,191.89,20.0]
[1735747735680,24.009484,192.01,191.89,20.0]
[1735747735865,6.12669058,192.01,191.89,20.0]
[1735747736062,23.776884,192.0,191.89,20.0]
[1735747736255,23.776884,191.96,191.88,20.0]
[1735747737082,23.776884,191.96,191.87,21.5183]
[1735747743982,23.776884,191.96,191.88,20.0]
[1735747744166,20.0,191.97,191.88,20.0]
[1735747744470,79.09409058,191.99,191.88,20.0]
[1735747744670,23.776884,191.98,191.88,20.0]
[1735747746264,23.776884,191.98,191.89,20.0]
[1735747746668,23.776884,191.98,191.87,1.5183]
[1735747747284,23.776884,191.98,191.88,20.0]
[1735747747711,23.776884,191.92,191.87,1.5183]
[1735747751184,5.89409058,191.97,191.87,1.5183]
[1735747751784,23.776884,191.96,191.87,1.5183]
[1735747752085,5.89409058,191.97,191.87,1.5183]
[1735747752583,5.89409058,191.97,191.88,17.09928234]
[1735747753385,23.776884,191.96,191.88,17.09928234]
[1735747753586,23.776884,191.96,191.88,6.6243]
[1735747755263,7.8125,192.0,191.88,17.09928234]
[1735747755663,5.89409058,192.01,191.9,10.47498234]
[1735747755889,5.89409058,192.01,191.91,30.47498234]
[1735747756096,5.89409058,192.01,191.93,1.6476]
[1735747756272,8.0421,192.08,191.93,12.12258234]
[1735747756463,5.89409058,192.06,191.93,12.12258234]
[1735747757096,23.776884,192.05,191.93,12.12258234]
[1735747757403,23.776884,192.05,191.94,10.47498234]
[1735747757684,23.776884,192.05,191.95,8.2719]
[1735747757889,5.89409058,192.06,191.98,20.0]
[1735747758193,5.15075554,192.13,192.01,8.2719]
[1735747758194,4.91815554,192.13,192.01,8.2719]
[1735747758374,5.89409058,192.11,192.01,8.2719]
[1735747758573,23.776884,192.1,192.01,8.2719]
[1735747758775,5.89409058,192.11,192.01,8.2719]
[1735747759888,23.776884,192.1,192.01,8.2719]
[1735747760273,5.89409058,192.11,192.01,8.2719]
[1735747760691,23.776884,192.1,192.01,8.2719]
[1735747765294,23.776884,192.06,192.01,8.2719]
[1735747765498,23.776884,192.08,192.01,8.2719]
[1735747772881,5.89409058,192.11,192.01,8.2719]
[1735747773082,7.8074,192.13,192.01,8.2719]
[1735747773887,23.776884,192.12,192.01,7.95941]
[1735747775595,29.67097458,192.12,192.01,7.95941]
[1735747776087,23.776884,192.1,192.01,7.95941]
[1735747777086,5.89409058,192.1,192.01,7.95941]
[1735747777899,29.67097458,192.1,192.01,7.95941]
[1735747778298,23.776884,192.09,192.01,7.95941]
[1735747778880,31.585684,192.09,192.01,7.95941]
[1735747779110,37.47977458,192.09,192.01,7.95941]
[1735747779303,23.776884,192.07,192.01,7.95941]
[1735747779486,29.67097458,192.07,192.01,7.95941]
[1735747780797,23.776884,192.05,192.01,7.95941]
[1735747786910,23.776884,192.03,192.01,7.95941]
[1735747790194,13.70379058,192.07,192.01,7.95941]
[1735747790393,27.37175763,192.06,192.01,7.95941]
[1735747802706,23.776884,192.04,192.01,7.95941]
[1735747805813,23.59487363,192.06,192.01,7.95941]
[1735747806031,20.0,192.05,192.01,7.95941]
[1735747806731,23.776884,192.04,192.01,7.95941]
[1735747810447,31.588084,192.04,191.96,8.1541]
[1735747810733,23.776884,192.0,191.96,8.1541]
[1735747810957,23.776884,192.0,191.96,1.5887]
[1735747814543,3.59487363,192.03,191.96,1.5887]
[1735747814722,3.59487363,192.03,191.97,6.5654]
[1735747814918,23.776884,192.02,191.97,6.5654]
[1735747815349,3.59487363,192.03,191.97,6.5654]
[1735747815914,23.776884,192.02,191.97,6.5654]
[1735747817323,23.776884,192.06,191.97,6.5654]
[1735747818322,27.37175763,192.06,191.97,6.5654]
[1735747820044,3.59487363,192.06,191.98,1.5887]
[1735747820217,7.8085,192.1,192.0,1.5887]
[1735747820421,5.89409058,192.11,192.01,10.47498234]
[1735747820927,5.89409058,192.11,192.02,6.5654]
[1735747820928,23.776884,192.1,192.02,6.5654]
[1735747821447,23.776884,192.1,192.03,1.5887]
[1735747821948,5.89409058,192.11,192.03,1.5887]
[1735747822520,23.776884,192.1,192.03,1.5887]
[1735747839243,5.89409058,192.11,192.03,1.5887]